fUSD/lending_fUSD_20240216
["ID","MTS","AMOUNT","RATE_DAILY","PERIOD"]
[314203168,1708077049746,-263.39992226,0.00041095,30]
[314203169,1708077049755,-573.94,0.00041095,7]
[314203170,1708077049764,-556.29285549,0.00041095,30]
[314203171,1708077049774,-510.51641097,0.00041095,30]
[314203172,1708077049783,-500.0,0.00041095,30]
[314203173,1708077049792,-500.0,0.00041095,30]
[314203174,1708077049802,-500.0,0.00041095,30]
[314203175,1708077049811,-500.0,0.00041095,30]
[314203176,1708077049831,-500.0,0.00041095,30]
[314203177,1708077049841,-523.3114251,0.00041095,30]
[314203178,1708077049850,-500.0,0.00041095,30]
[314203179,1708077049859,-500.0,0.00041095,30]
[314203180,1708077049868,-500.0,0.00041095,30]
[314203181,1708077049878,-500.0,0.00041095,30]
[314203182,1708077049887,-500.0,0.00041095,30]
[314203183,1708077049895,-500.0,0.00041095,30]
[314203184,1708077049904,-608.08386786,0.00041095,30]
[314203185,1708077049914,-489.55662512,0.00041095,30]
[314203186,1708077049924,-520.24606305,0.00041095,30]
[314203187,1708077049936,-492.88235895,0.00041095,30]
[314203188,1708077049946,-500.0,0.00041095,30]
[314203189,1708077049955,-480.0,0.00041095,30]
[314203190,1708077049965,-500.0,0.00041095,30]
[314203191,1708077049974,-500.0,0.00041095,30]
[314203192,1708077049983,-500.0,0.00041095,30]
[314203193,1708077049993,-491.30355256,0.00041095,30]
[314203194,1708077050002,-502.69389065,0.00041095,30]
[314203195,1708077050013,-509.5850002,0.00041095,30]
[314203196,1708077050022,-500.0,0.00041095,30]
[314203197,1708077050031,-500.0,0.00041095,30]
[314203198,1708077050041,-552.66178743,0.00041095,30]
[314203199,1708077050050,-500.0,0.00041095,30]
[314203200,1708077050060,-500.0,0.00041095,30]
[314203201,1708077050069,-506.79663651,0.00041095,30]
[314203202,1708077050080,-507.24076654,0.00041095,30]
[314203203,1708077050090,-500.0,0.00041095,30]
[314203204,1708077050240,-514.58859824,0.00041095,30]
[314203205,1708077050249,-546.70616047,0.00041095,30]
[314203206,1708077050259,-511.07582744,0.00041095,30]
[314203207,1708077050268,-542.68080216,0.00041095,30]
[314203208,1708077050277,-533.75827781,0.00041095,30]
[314203209,1708077050286,-500.0,0.00041095,30]
[314203210,1708077050295,-500.0,0.00041095,30]
[314203211,1708077050304,-454.3787956,0.00041095,30]
[314203212,1708077050316,-177.34687388,0.00041095,30]
[314203213,1708077050326,-503.49337513,0.00041095,30]
[314203214,1708077050335,-500.0,0.00041095,30]
[314203215,1708077050344,-500.0,0.00041095,30]
[314203216,1708077050353,-613.92552126,0.00041095,30]
[314203217,1708077050362,-500.0,0.00041095,30]
[314203218,1708077050372,-500.0,0.00041095,30]
[314203219,1708077050381,-500.0,0.00041095,30]
[314203220,1708077050391,-509.61232403,0.00041095,30]
[314203221,1708077050400,-500.0,0.00041095,30]
[314203222,1708077050410,-573.24913841,0.00041095,30]
[314203223,1708077050419,-500.0,0.00041095,30]
[314203224,1708077050429,-527.53925798,0.00041095,30]
[314203225,1708077050438,-531.14975627,0.00041095,30]
[314203226,1708077050447,-649.25975703,0.00041095,30]
[314203227,1708077050456,-500.0,0.00041095,30]
[314203228,1708077050466,-548.89132224,0.00041095,30]
[314203229,1708077050476,-507.9332203,0.00041095,30]
[314203230,1708077050488,-527.17091595,0.00041095,30]
[314203231,1708077050497,-1000.0,0.00041095,30]
[314203232,1708077050507,-500.0,0.00041095,30]
[314203233,1708077050516,-1000.0,0.00041095,30]
[314203234,1708077050526,-500.0,0.00041095,30]
[314203235,1708077050535,-500.0,0.00041095,30]
[314203236,1708077050544,-1000.0,0.00041095,30]
[314203237,1708077050554,-1000.0,0.00041095,30]
[314203238,1708077050563,-1000.0,0.00041095,30]
[314203239,1708077050572,-500.0,0.00041095,30]
[314203240,1708077050582,-500.0,0.00041095,30]
[314203241,1708077050592,-1000.0,0.00041095,30]
[314203242,1708077050603,-500.0,0.00041095,30]
[314203243,1708077050613,-214.89990239,0.00041095,30]
[314203244,1708077050622,-1027.69280733,0.00041095,30]
[314203245,1708077050632,-428.08354575,0.00041095,30]
[314203246,1708077050641,-427.34707273,0.00041095,30]
[314203247,1708077050651,-503.54436677,0.00041095,30]
[314203248,1708077050661,-502.99659244,0.00041095,30]
[314203249,1708077050670,-500.0,0.00041095,30]
[314203250,1708077050679,-500.0,0.00041095,30]
[314203251,1708077050689,-500.0,0.00041095,30]
[314203252,1708077050699,-647.76658355,0.00041095,30]
[314203253,1708077050709,-500.0,0.00041095,30]
[314203254,1708077050718,-500.0,0.00041095,30]
[314203255,1708077050728,-500.0,0.00041095,30]
[314203256,1708077050737,-500.0,0.00041095,30]
[314203257,1708077050747,-518.80780902,0.00041095,30]
[314203258,1708077050757,-500.0,0.00041095,30]
[314203259,1708077050766,-500.0,0.00041095,30]
[314203260,1708077050776,-500.0,0.00041095,30]
[314203261,1708077050785,-554.82404435,0.00041095,30]
[314203262,1708077050795,-500.0,0.00041095,30]
[314203263,1708077050804,-500.0,0.00041095,30]
[314203264,1708077050813,-500.0,0.00041095,30]
[314203265,1708077050823,-220.12,0.00041095,30]
[314203266,1708077050833,-522.06854496,0.00041095,30]
[314203267,1708077050842,-500.0,0.00041095,30]
[314203268,1708077050852,-500.0,0.00041095,30]
[314203269,1708077050862,-500.0,0.00041095,30]
[314203270,1708077050871,-500.0,0.00041095,30]
[314203271,1708077050881,-500.0,0.00041095,30]
[314203272,1708077050890,-500.0,0.00041095,30]
[314203273,1708077050899,-500.0,0.00041095,30]
[314203274,1708077050909,-500.0,0.00041095,30]
[314203275,1708077050918,-627.65503287,0.00041095,30]
[314203276,1708077050930,-500.0,0.00041095,30]
[314203277,1708077050940,-500.0,0.00041095,30]
[314203278,1708077050949,-546.29529059,0.00041095,30]
[314203279,1708077050959,-547.22467518,0.00041095,30]
[314203280,1708077050968,-500.0,0.00041095,30]
[314203281,1708077050978,-500.0,0.00041095,30]
[314203282,1708077050988,-500.0,0.00041095,30]
[314203283,1708077050997,-500.0,0.00041095,30]
[314203284,1708077051007,-533.99508549,0.00041095,30]
[314203285,1708077051017,-530.82715064,0.00041095,30]
[314203286,1708077051029,-500.0,0.00041095,30]
[314203287,1708077051039,-210.7725259,0.00041095,30]
[314203288,1708077051049,-500.0,0.00041095,30]
[314203289,1708077051058,-500.0,0.00041095,30]
[314203290,1708077051068,-500.0,0.00041095,30]
[314203291,1708077051078,-500.0,0.00041095,30]
[314203292,1708077051087,-534.5110758,0.00041095,30]
[314203293,1708077051097,-500.0,0.00041095,30]
[314203294,1708077051106,-500.0,0.00041095,30]
[314203295,1708077051115,-500.0,0.00041095,30]
[314203296,1708077051124,-500.0,0.00041095,30]
[314203297,1708077051134,-500.0,0.00041095,30]
[314203298,1708077051144,-545.5262098,0.00041095,30]
[314203299,1708077051153,-500.0,0.00041095,30]
[314203300,1708077051162,-511.72608362,0.00041095,30]
[314203301,1708077051172,-500.0,0.00041095,30]
[314203302,1708077051182,-500.0,0.00041095,30]
[314203303,1708077051191,-522.57094919,0.00041095,30]
[314203304,1708077051201,-500.0,0.00041095,30]
[314203305,1708077051211,-500.0,0.00041095,30]
[314203306,1708077051222,-500.0,0.00041095,30]
[314203307,1708077051239,-500.0,0.00041095,30]
[314203308,1708077051249,-500.0,0.00041095,30]
[314203309,1708077051258,-500.0,0.00041095,30]
[314203310,1708077051268,-500.0,0.00041095,30]
[314203311,1708077051277,-500.0,0.00041095,30]
[314203312,1708077051286,-500.0,0.00041095,30]
[314203313,1708077051296,-325.63823911,0.00041095,30]
[314203314,1708077051305,-500.0,0.00041095,30]
[314203315,1708077051316,-500.0,0.00041095,30]
[314203316,1708077051331,-500.0,0.00041095,30]
[314203317,1708077051341,-638.983871,0.00041095,30]
[314203318,1708077051350,-814.85,0.00041095,30]
[314203319,1708077051359,-645.68824147,0.00041095,30]
[314203320,1708077051369,-500.0,0.00041095,30]
[314203321,1708077051378,-814.85,0.00041095,30]
[314203322,1708077051388,-500.0,0.00041095,30]
[314203323,1708077051399,-814.85,0.00041095,30]
[314203324,1708077051409,-473.45066138,0.00041095,30]
[314203325,1708077051418,-500.0,0.00041095,30]
[314203326,1708077051428,-814.85,0.00041095,30]
[314203327,1708077051437,-814.85,0.00041095,30]
[314203328,1708077051447,-814.85,0.00041095,30]
[314203329,1708077051457,-500.86541986,0.00041095,30]
[314203330,1708077051466,-500.0,0.00041095,30]
[314203331,1708077051476,-814.85,0.00041095,30]
[314203332,1708077051485,-522.58185027,0.00041095,30]
[314203333,1708077051495,-500.0,0.00041095,30]
[314203334,1708077051504,-500.0,0.00041095,30]
[314203335,1708077051513,-814.85,0.00041095,30]
[314203336,1708077051523,-500.0,0.00041095,30]
[314203337,1708077051532,-500.0,0.00041095,30]
[314203338,1708077051542,-814.85,0.00041095,30]
[314203339,1708077051551,-814.85,0.00041095,30]
[314203340,1708077051561,-500.0,0.00041095,30]
[314203341,1708077051570,-814.85,0.00041095,30]
[314203342,1708077051579,-500.0,0.00041095,30]
[314203343,1708077051589,-500.0,0.00041095,30]
[314203344,1708077051598,-814.85,0.00041095,30]
[314203345,1708077051607,-500.0,0.00041095,30]
[314203346,1708077051617,-814.85,0.00041095,30]
[314203347,1708077051627,-500.0,0.00041095,30]
[314203348,1708077051636,-814.85,0.00041095,30]
[314203349,1708077051646,-535.02853452,0.00041095,30]
[314203350,1708077051657,-513.09374216,0.00041095,30]
[314203351,1708077051668,-530.21,0.00041095,30]
[314203352,1708077051678,-814.85,0.00041095,30]
[314203353,1708077051687,-500.0,0.00041095,30]
[314203354,1708077051697,-814.85,0.00041095,30]
[314203355,1708077051707,-347.78050865,0.00041095,30]
[314203356,1708077051716,-814.85,0.00041095,30]
[314203357,1708077051726,-814.85,0.00041095,30]
[314203358,1708077051735,-814.85,0.00041095,30]
[314203359,1708077051744,-500.0,0.00041095,30]
[314203360,1708077051753,-526.41947377,0.00041095,30]
[314203361,1708077051762,-550.61952341,0.00041095,30]
[314203362,1708077051771,-533.4710648,0.00041095,30]
[314203363,1708077051780,-814.85,0.00041095,30]
[314203364,1708077051789,-814.85,0.00041095,30]
[314203365,1708077051798,-575.29664923,0.00041095,30]
[314203366,1708077051807,-814.85,0.00041095,30]
[314203367,1708077051816,-814.85,0.00041095,30]
[314203368,1708077051826,-967.23,0.00041095,30]
[314203369,1708077051835,-529.29257346,0.00041095,30]
[314203370,1708077051844,-815.0671209,0.00041095,30]
[314203371,1708077051854,-967.23,0.00041095,30]
[314203372,1708077051863,-507.98950162,0.00041095,30]
[314203373,1708077051872,-500.0,0.00041095,30]
[314203374,1708077051882,-967.23,0.00041095,30]
[314203375,1708077051891,-967.23,0.00041095,30]
[314203376,1708077051900,-534.73267449,0.00041095,30]
[314203377,1708077051909,-967.23,0.00041095,30]
[314203378,1708077051918,-500.0,0.00041095,30]
[314203379,1708077051931,-500.0,0.00041095,30]
[314203380,1708077051940,-967.23,0.00041095,30]
[314203381,1708077051950,-500.0,0.00041095,30]
[314203382,1708077051960,-967.23,0.00041095,30]
[314203383,1708077051970,-500.0,0.00041095,30]
[314203384,1708077051980,-500.0,0.00041095,30]
[314203385,1708077051989,-516.71461023,0.00041095,30]
[314203386,1708077051999,-500.0,0.00041095,30]
[314203387,1708077052009,-967.23,0.00041095,30]
[314203388,1708077052019,-345.26656021,0.00041095,30]
[314203389,1708077052028,-500.0,0.00041095,30]
[314203390,1708077052038,-534.27672967,0.00041095,30]
[314203391,1708077052047,-967.23,0.00041095,30]
[314203392,1708077052057,-500.0,0.00041095,30]
[314203393,1708077052066,-334.13352607,0.00041095,30]
[314203394,1708077052076,-967.23,0.00041095,30]
[314203395,1708077052085,-500.0,0.00041095,30]
[314203396,1708077052095,-967.23,0.00041095,30]
[314203397,1708077052104,-468.05212889,0.00041095,30]
[314203398,1708077052114,-967.23,0.00041095,30]
[314203399,1708077052123,-967.23,0.00041095,30]
[314203400,1708077052132,-507.46544324,0.00041095,30]
[314203401,1708077052141,-967.23,0.00041095,30]
[314203402,1708077052151,-560.93281504,0.00041095,30]
[314203403,1708077052160,-967.23,0.00041095,30]
[314203404,1708077052170,-967.23,0.00041095,30]
[314203405,1708077052179,-967.23,0.00041095,30]
[314203406,1708077052189,-505.91773385,0.00041095,30]
[314203407,1708077052198,-967.23,0.00041095,30]
[314203408,1708077052207,-514.30332607,0.00041095,30]
[314203409,1708077052216,-500.0,0.00041095,30]
[314203410,1708077052225,-500.0,0.00041095,30]
[314203411,1708077052235,-500.0,0.00041095,30]
[314203412,1708077052244,-521.74377292,0.00041095,30]
[314203413,1708077052253,-152.05369087,0.00041095,30]
[314203414,1708077052262,-512.15991006,0.00041095,30]
[314203415,1708077052272,-551.32658348,0.00041095,30]
[314203416,1708077052281,-534.12977323,0.00041095,30]
[314203417,1708077052290,-548.83736097,0.00041095,30]
[314203418,1708077052299,-512.26351759,0.00041095,30]
[314203419,1708077052309,-500.0,0.00041095,30]
[314203420,1708077052318,-526.43208249,0.00041095,30]
[314203421,1708077052327,-523.51836019,0.00041095,30]
[314203422,1708077052336,-465.51146474,0.00041095,30]
[314203423,1708077052345,-517.77003695,0.00041095,30]
[314203424,1708077052354,-500.0,0.00041095,30]
[314203425,1708077052364,-500.0,0.00041095,30]
[314203426,1708077052373,-595.00471765,0.00041095,30]
[314203427,1708077052383,-500.0,0.00041095,30]
[314203428,1708077052393,-500.0,0.00041095,30]
[314203429,1708077052402,-578.3222031,0.00041095,30]
[314203430,1708077052411,-384.62577617,0.00041095,30]
[314203431,1708077052421,-500.0,0.00041095,30]
[314203432,1708077052430,-598.29497004,0.00041095,30]
[314203433,1708077052536,-514.01725901,0.00041095,30]
[314203434,1708077052547,-517.31953854,0.00041095,30]
[314203435,1708077052557,-151.0,0.00041095,7]
[314203436,1708077052566,-151.0,0.00041095,7]
[314203437,1708077052575,-500.0,0.00041095,30]
[314203438,1708077052585,-164.482662,0.00041095,7]
[314203439,1708077052593,-500.0,0.00041095,30]
[314203440,1708077052603,-515.26840174,0.00041095,30]
[314203441,1708077052612,-500.0,0.00041095,30]
[314203442,1708077052621,-505.45411039,0.00041095,30]
[314203443,1708077052630,-500.0,0.00041095,30]
[314203444,1708077052639,-500.0,0.00041095,30]
[314203445,1708077052648,-500.0,0.00041095,30]
[314203446,1708077052657,-500.0,0.00041095,30]
[314203447,1708077052666,-532.28183511,0.00041095,30]
[314203448,1708077052675,-500.0,0.00041095,30]
[314203449,1708077052684,-500.0,0.00041095,30]
[314203450,1708077052694,-643.98395736,0.00041095,30]
[314203451,1708077052703,-559.37434714,0.00041095,30]
[314203452,1708077052711,-531.50142401,0.00041095,30]
[314203453,1708077052721,-500.0,0.00041095,30]
[314203454,1708077052730,-500.0,0.00041095,30]
[314203455,1708077052739,-500.0,0.00041095,30]
[314203456,1708077052748,-500.0,0.00041095,30]
[314203457,1708077052757,-526.24236354,0.00041095,30]
[314203458,1708077052766,-500.0,0.00041095,30]
[314203459,1708077052775,-500.0,0.00041095,30]
[314203460,1708077052784,-550.17305247,0.00041095,30]
[314203461,1708077052795,-500.0,0.00041095,30]
[314203462,1708077052807,-514.23900978,0.00041095,30]
[314203463,1708077052817,-500.0,0.00041095,30]
[314203464,1708077052826,-500.0,0.00041095,30]
[314203465,1708077052835,-500.0,0.00041095,30]
[314203466,1708077052845,-500.0,0.00041095,30]
[314203467,1708077052855,-500.0,0.00041095,30]
[314203468,1708077052865,-500.0,0.00041095,30]
[314203469,1708077052875,-572.19940751,0.00041095,30]
[314203470,1708077052885,-319.61,0.00041095,30]
[314203471,1708077052894,-594.06628057,0.00041095,30]
[314203472,1708077052903,-516.82154099,0.00041095,30]
[314203473,1708077052912,-520.80093995,0.00041095,30]
[314203474,1708077052922,-500.0,0.00041095,30]
[314203475,1708077052934,-500.0,0.00041095,30]
[314203476,1708077052944,-500.0,0.00041095,30]
[314203477,1708077052954,-510.813648,0.00041095,30]
[314203478,1708077052963,-521.47792226,0.00041095,30]
[314203479,1708077052974,-500.0,0.00041095,30]
[314203480,1708077052983,-524.17903145,0.00041095,30]
[314203481,1708077052992,-500.0,0.00041095,30]
[314203482,1708077053002,-500.0,0.00041095,30]
[314203483,1708077053012,-500.0,0.00041095,30]
[314203484,1708077053022,-500.0,0.00041095,30]
[314203485,1708077053031,-576.89777902,0.00041095,30]
[314203486,1708077053041,-500.0,0.00041095,30]
[314203487,1708077053050,-500.0,0.00041095,30]
[314203488,1708077053059,-500.0,0.00041095,30]
[314203489,1708077053069,-508.03162783,0.00041095,30]
[314203490,1708077053078,-500.0,0.00041095,30]
[314203491,1708077053087,-499.7173677,0.00041095,30]
[314203492,1708077053096,-500.0,0.00041095,30]
[314203493,1708077053106,-500.0,0.00041095,30]
[314203494,1708077053115,-500.0,0.00041095,30]
[314203495,1708077053125,-500.0,0.00041095,30]
[314203496,1708077053135,-531.53665813,0.00041095,30]
[314203497,1708077053144,-500.0,0.00041095,30]
[314203498,1708077053153,-500.0,0.00041095,30]
[314203499,1708077053163,-500.0,0.00041095,30]
[314203500,1708077053172,-500.0,0.00041095,30]
[314203501,1708077053181,-522.72113899,0.00041095,30]
[314203502,1708077053190,-500.0,0.00041095,30]
[314203503,1708077053199,-510.66143901,0.00041095,30]
[314203504,1708077053209,-500.0,0.00041095,30]
[314203505,1708077053218,-528.91602298,0.00041095,30]
[314203506,1708077053227,-500.0,0.00041095,30]
[314203507,1708077053237,-526.20846195,0.00041095,30]
[314203508,1708077053247,-523.71644145,0.00041095,30]
[314203509,1708077053256,-500.0,0.00041095,30]
[314203510,1708077053266,-532.68802346,0.00041095,30]
[314203511,1708077053276,-543.32595861,0.00041095,30]
[314203512,1708077053286,-318.85897632,0.00041095,30]
[314203513,1708077053295,-517.64873235,0.00041095,30]
[314203514,1708077053304,-500.0,0.00041095,30]
[314203515,1708077053314,-500.0,0.00041095,30]
[314203516,1708077053323,-500.0,0.00041095,30]
[314203517,1708077053333,-387.50725965,0.00041095,30]
[314203518,1708077053343,-500.0,0.00041095,30]
[314203519,1708077053352,-560.80830571,0.00041095,30]
[314203520,1708077053361,-500.0,0.00041095,30]
[314203521,1708077053370,-500.0,0.00041095,30]
[314203522,1708077053379,-500.0,0.00041095,30]
[314203523,1708077053388,-500.0,0.00041095,30]
[314203524,1708077053397,-500.0,0.00041095,30]
[314203525,1708077053407,-490.89099025,0.00041095,30]
[314203526,1708077053416,-500.0,0.00041095,30]
[314203527,1708077053426,-500.0,0.00041095,30]
[314203528,1708077053435,-527.20707673,0.00041095,30]
[314203529,1708077053444,-494.52065158,0.00041095,30]
[314203530,1708077053453,-488.44659545,0.00041095,30]
[314203531,1708077053462,-560.91202352,0.00041095,30]
[314203532,1708077053471,-545.02196339,0.00041095,30]
[314203533,1708077053480,-526.50555131,0.00041095,30]
[314203534,1708077053488,-571.9995558,0.00041095,30]
[314203535,1708077053497,-523.98221864,0.00041095,30]
[314203536,1708077053506,-516.74608323,0.00041095,30]
[314203537,1708077053515,-531.74186028,0.00041095,30]
[314203538,1708077053523,-550.16690683,0.00041095,30]
[314203539,1708077053532,-535.2045803,0.00041095,30]
[314203540,1708077053541,-500.0,0.00041095,30]
[314203541,1708077053550,-500.0,0.00041095,30]
[314203542,1708077053558,-500.0,0.00041095,30]
[314203543,1708077053567,-500.0,0.00041095,30]
[314203544,1708077053576,-177.76783251,0.00041095,30]
[314203545,1708077053585,-500.0,0.00041095,30]
[314203546,1708077053594,-500.0,0.00041095,30]
[314203547,1708077053603,-525.02433786,0.00041095,30]
[314203548,1708077053612,-581.45289515,0.00041095,30]
[314203549,1708077053621,-451.21157674,0.00041095,30]
[314203550,1708077053630,-500.0,0.00041095,30]
[314203551,1708077053639,-601.31291904,0.00041095,30]
[314203552,1708077053648,-523.44646167,0.00041095,30]
[314203553,1708077053657,-512.20131443,0.00041095,30]
[314203554,1708077053666,-537.39399122,0.00041095,30]
[314203555,1708077053675,-542.41756381,0.00041095,30]
[314203556,1708077053684,-573.32215068,0.00041095,30]
[314203557,1708077053693,-554.20099959,0.00041095,30]
[314203558,1708077053703,-537.6664727,0.00041095,30]
[314203559,1708077053711,-522.33479436,0.00041095,30]
[314203560,1708077053721,-521.76431241,0.00041095,30]
[314203561,1708077053729,-155.03529304,0.00041095,30]
[314203562,1708077053738,-554.45432506,0.00041095,30]
[314203563,1708077053747,-514.32117353,0.00041095,30]
[314203564,1708077053756,-500.0,0.00041095,30]
[314203565,1708077053764,-692.81,0.00041095,30]
[314203566,1708077053774,-616.60315571,0.00041095,30]
[314203567,1708077053783,-514.55898028,0.00041095,30]
[314203568,1708077053792,-512.26889267,0.00041095,30]
[314203569,1708077053801,-692.81,0.00041095,30]
[314203570,1708077053810,-507.5152377,0.00041095,30]
[314203571,1708077053818,-500.0,0.00041095,30]
[314203572,1708077053827,-638.91556807,0.00041095,30]
[314203573,1708077053836,-692.81,0.00041095,30]
[314203574,1708077053845,-545.87351526,0.00041095,30]
[314203575,1708077053855,-692.81,0.00041095,30]
[314203576,1708077053865,-692.81,0.00041095,30]
[314203577,1708077053874,-692.81,0.00041095,30]
[314203578,1708077053882,-692.81,0.00041095,30]
[314203579,1708077053893,-692.81,0.00041095,30]
[314203580,1708077053902,-500.0,0.00041095,30]
[314203581,1708077053911,-692.81,0.00041095,30]
[314203582,1708077053920,-500.0,0.00041095,30]
[314203583,1708077053935,-692.81,0.00041095,30]
[314203584,1708077053944,-692.81,0.00041095,30]
[314203585,1708077053954,-520.50301167,0.00041095,30]
[314203586,1708077053963,-500.0,0.00041095,30]
[314203587,1708077053974,-692.81,0.00041095,30]
[314203588,1708077053983,-515.88403916,0.00041095,30]
[314203589,1708077053993,-692.81,0.00041095,30]
[314203590,1708077054003,-692.81,0.00041095,30]
[314203591,1708077054013,-500.0,0.00041095,30]
[314203592,1708077054023,-500.0,0.00041095,30]
[314203593,1708077054032,-692.81,0.00041095,30]
[314203594,1708077054041,-525.56784341,0.00041095,30]
[314203595,1708077054050,-500.0,0.00041095,30]
[314203596,1708077054059,-525.45589969,0.00041095,30]
[314203597,1708077054068,-692.81,0.00041095,30]
[314203598,1708077054078,-692.81,0.00041095,30]
[314203599,1708077054087,-515.49942367,0.00041095,30]
[314203600,1708077054095,-692.81,0.00041095,30]
[314203601,1708077054105,-692.81,0.00041095,30]
[314203602,1708077054114,-500.0,0.00041095,30]
[314203603,1708077054123,-692.81,0.00041095,30]
[314203604,1708077054132,-520.17218374,0.00041095,30]
[314203605,1708077054141,-692.81,0.00041095,30]
[314203606,1708077054150,-692.81,0.00041095,30]
[314203607,1708077054159,-593.18498037,0.00041095,30]
[314203608,1708077054168,-500.0,0.00041095,30]
[314203609,1708077054177,-692.81,0.00041095,30]
[314203610,1708077054186,-519.9706386,0.00041095,30]
[314203611,1708077054195,-692.99549648,0.00041095,30]
[314203612,1708077054204,-521.68915943,0.00041095,30]
[314203613,1708077054213,-500.0,0.00041095,30]
[314203614,1708077054222,-500.0,0.00041095,30]
[314203615,1708077054233,-500.0,0.00041095,30]
[314203616,1708077054243,-648.53772077,0.00041095,30]
[314203617,1708077054252,-559.23188685,0.00041095,30]
[314203618,1708077054261,-507.43945001,0.00041095,30]
[314203619,1708077054270,-500.0,0.00041095,30]
[314203620,1708077054279,-500.0,0.00041095,30]
[314203621,1708077054288,-584.01366519,0.00041095,30]
[314203622,1708077054297,-529.3756504,0.00041095,30]
[314203623,1708077054306,-500.0,0.00041095,30]
[314203624,1708077054315,-506.15683368,0.00041095,30]
[314203625,1708077054324,-248.06856746,0.00041095,30]
[314203626,1708077054333,-500.0,0.00041095,30]
[314203627,1708077054343,-500.0,0.00041095,30]
[314203628,1708077054352,-500.0,0.00041095,30]
[314203629,1708077054361,-528.63576065,0.00041095,30]
[314203630,1708077054370,-500.0,0.00041095,30]
[314203631,1708077054380,-500.0,0.00041095,30]
[314203632,1708077054389,-500.0,0.00041095,30]
[314203633,1708077054398,-500.0,0.00041095,30]
[314203634,1708077054407,-500.0,0.00041095,30]
[314203635,1708077054418,-591.19536137,0.00041095,30]
[314203636,1708077054429,-500.0,0.00041095,30]
[314203637,1708077054440,-500.0,0.00041095,30]
[314203638,1708077054449,-500.0,0.00041095,30]
[314203639,1708077054458,-500.0,0.00041095,30]
[314203640,1708077054467,-197.21537165,0.00041095,30]
[314203641,1708077054476,-500.0,0.00041095,30]
[314203642,1708077054485,-500.0,0.00041095,30]
[314203643,1708077054494,-500.0,0.00041095,30]
[314203644,1708077054503,-500.0,0.00041095,30]
[314203645,1708077054601,-500.0,0.00041095,30]
[314203646,1708077054611,-500.0,0.00041095,30]
[314203647,1708077054620,-510.87231338,0.00041095,30]
[314203648,1708077054628,-368.32,0.00041095,30]
[314203649,1708077054637,-637.19729707,0.00041095,30]
[314203650,1708077054646,-515.99548383,0.00041095,30]
[314203651,1708077054655,-500.0,0.00041095,30]
[314203652,1708077054664,-632.89738664,0.00041095,30]
[314203653,1708077054673,-500.0,0.00041095,30]
[314203654,1708077054682,-500.0,0.00041095,30]
[314203655,1708077054692,-605.77180184,0.00041095,30]
[314203656,1708077054701,-500.0,0.00041095,30]
[314203657,1708077054710,-539.97842346,0.00041095,30]
[314203658,1708077054719,-513.22438257,0.00041095,2]
[314203659,1708077054728,-503.16420493,0.00041095,30]
[314203660,1708077054737,-500.0,0.00041095,30]
[314203661,1708077054746,-500.0,0.00041095,30]
[314203662,1708077054755,-500.0,0.00041095,30]
[314203663,1708077054764,-500.0,0.00041095,30]
[314203664,1708077054774,-500.0,0.00041095,30]
[314203665,1708077054783,-500.0,0.00041095,30]
[314203666,1708077054792,-520.7216417,0.00041095,30]
[314203667,1708077054801,-500.0,0.00041095,30]